Cogmind - Beta 15 *** ADVENTURER MODE // 2025.10.13 @ 07:44:00 // Winter2019/RPGLIKE Player: Gallgagger Result: Self-destructed Performance ------------- Evolutions (4) 2000 Regions Visited (10) 2000 Robots Destroyed (161) 805 Value Destroyed (5013) 5013 Prototype IDs (33) 660 Alien Tech Used (0) 0 Bonus (993) 993 TOTAL SCORE: 11471 Bonus ------- High Alert Combat Kills 154 Follower Combat Kills 110 Entered DSFs 500 Aligned with FarCom 300 Friendly Fire -71 Cogmind --------- Core Integrity 492/750 Matter 156/300 Energy 410/535 System Corruption 2% Temperature Cool (0) Movement Hovering (45) Location -6/Factory Parts ------- > --- POWER (2) -------- Cooled Deuterium Engine Antimatter Reactor > --- PROPULSION (4) --- Aerolev Unit Aerolev Unit Improved Airjet Combat Airjet > --- UTILITY (7) ------ Gravity Neutralizer Triangulator Experimental Sensor Array Advanced Signal Interpreter Advanced Weapon Cycler Transmission Jammer Cloak of Protection > --- WEAPON (4) ------- Enhanced Autogun Enhanced Autogun Enhanced Autogun Power Maul > --- INVENTORY (3) ---- Protomatter-64 Medium Reactive Plating Plasma Cutter Peak State ------------ > --- POWER ------------ Cooled Deuterium Engine Antimatter Reactor > --- PROPULSION ------- Aerolev Unit Aerolev Unit Improved Airjet Cooled Aerolev Unit > --- UTILITY ---------- Gravity Neutralizer Triangulator Experimental Sensor Array Advanced Signal Interpreter Advanced Weapon Cycler Transmission Jammer Cloak of Protection > --- WEAPON ----------- Enhanced Autogun Enhanced Autogun Enhanced Autogun Power Maul > --- INVENTORY -------- Protomatter Medium Reactive Plating Plasma Cutter [Rating: 92] Favorites ----------- Power Light Nuclear Core Engine Ion Engine Power Core Light Nuclear Core Reactor Antimatter Reactor Propulsion Aerolev Unit Treads Light Treads Leg Aluminum Leg Wheel Wheel Hover Unit Aerolev Unit Flight Unit Improved VTOL Module Utility Medium Armor Plating Device Cloak of Protection Processor Advanced Signal Interpreter Protection Medium Armor Plating Weapon Enhanced Autogun Energy Gun Spread Laser Energy Cannon Beam Cannon Ballistic Gun Enhanced Autogun Impact Weapon Power Maul Build | -11 -10 -10 -10 -9 -8 -7 -7 -7 -7 -6 ------- Run | Yrd Mat Min Exi Min Mat Fac Was Fac DSF Fac Slots Evolved 13 | 4 3 . . 1 3 1 . . . 1 Power 1 | 1 . . . . . . . . . . Propulsion 3 | 1 1 . . . 1 . . . . . Utility 6 | 1 1 . . 1 1 1 . . . 1 Weapon 3 | 1 1 . . . 1 . . . . . Parts Attached 66 | 9 13 2 7 3 20 3 2 . . 7 Power 11 | 2 . 1 1 . 3 1 2 . . 1 Engine 6 | 2 . . . . 2 1 . . . 1 Core 4 | . . 1 1 . 1 . 1 . . . Reactor 1 | . . . . . . . 1 . . . Propulsion 19 | 3 3 . 3 . 6 1 . . . 3 Treads 2 | . 2 . . . . . . . . . Leg 4 | . . . 3 . 1 . . . . . Wheel 4 | 3 1 . . . . . . . . . Hover 8 | . . . . . 4 1 . . . 3 Flight 1 | . . . . . 1 . . . . . Utility 14 | 2 4 1 3 1 . 1 . . . 2 Device 8 | 2 . 1 3 . . 1 . . . 1 Storage . | . . . . . . . . . . . Processor 1 | . . . . . . . . . . 1 Hackware . | . . . . . . . . . . . Protection 5 | . 4 . . 1 . . . . . . Artifact . | . . . . . . . . . . . Weapon 22 | 2 6 . . 2 11 . . . . 1 Energy Gun 3 | . 2 . . . 1 . . . . . Energy Cannon 3 | . 2 . . 1 . . . . . . Ballistic Gun 15 | 2 2 . . 1 10 . . . . . Ballistic Cannon . | . . . . . . . . . . . Launcher . | . . . . . . . . . . . Special Weapon . | . . . . . . . . . . . Impact Weapon 1 | . . . . . . . . . . 1 Slashing Weapon . | . . . . . . . . . . . Piercing Weapon . | . . . . . . . . . . . Special Melee Weapon . | . . . . . . . . . . . Unidentified Prototypes 10 | . . 1 2 . 4 . . . . 3 Parts Lost . | . . . . . . . . . . . Power . | . . . . . . . . . . . Propulsion . | . . . . . . . . . . . Utility . | . . . . . . . . . . . Weapon . | . . . . . . . . . . . Highest Loss Streak . | . . . . . . . . . . . To Critical Strikes . | . . . . . . . . . . . Average Backups 2 | . 1 1 1 2 2 1 1 2 2 1 Power . | . . . . . . . . 1 1 . Propulsion . | . . . . . . . 1 1 1 . Utility 1 | . . . . 2 1 . . . . 1 Weapon . | . 1 1 . . . . . . . . Tool/Special . | . . . . . . . . . . . Unused Backups 11 | . 2 . 7 . 1 . . . . 1 Power 3 | . . . 3 . . . . . . . Propulsion . | . . . . . . . . . . . Utility 6 | . 2 . 4 . . . . . . . Weapon 1 | . . . . . 1 . . . . . Tool/Special 1 | . . . . . . . . . . 1 Average Slot Usage (%) 97 | . 99 100 81 100 98 100 100 100 100 99 Engine 8 | . 23 14 8 . 3 6 6 6 6 5 Core 7 | . . 3 9 18 10 6 6 6 6 1 Treads 5 | . 3 18 15 . . . . . . . Leg 6 | . . . 3 27 11 . . . . . Wheel 5 | . 20 9 7 . . . . . . . Hover 8 | . . . . . 14 25 25 25 25 23 Device 18 | . 10 . 7 18 28 28 31 31 31 33 Protection 11 | . 16 27 14 9 7 6 6 6 6 . Energy Gun 2 | . 10 9 1 . . . . . . . Energy Cannon 2 | . 12 . . 3 3 . . . . . Ballistic Gun 16 | . 1 18 12 23 18 25 25 25 25 19 Peak Build Rating 92 | 10 16 22 41 53 71 78 82 79 79 92 Average Rating 44 | 6 10 16 20 43 60 75 78 79 79 86 On Entrance 47 | . 10 15 18 41 53 71 78 79 79 79 Naked Turns . | . . . . . . . . . . . Heaviest Build 69 | 13 37 38 48 67 69 58 69 58 58 58 Greatest Support 77 | 26 45 45 55 67 77 60 60 60 60 64 Greatest Overweight (x) 2 | . . 2 2 . 1 . 1 . . . Average Overweight (x) . | . . 1 1 . . . . . . . Largest Inventory Capacity 3 | 2 2 2 3 3 3 3 3 3 3 3 Average Capacity 2 | 2 2 2 2 3 3 3 3 3 3 3 Most Carried 3 | 1 2 2 3 3 3 2 3 3 3 3 Average Carried 2 | . 1 1 1 2 2 1 2 3 3 2 Final Capacity 3 | 2 2 2 3 3 3 3 3 3 3 3 Final Carried 3 | 1 2 2 3 2 1 1 3 3 3 3 Class Distribution -------------------- 42% | Scavenger-Gunner 15% | Mutant 14% | Hacker-Gunner 9% | Tank 9% | Scavenger-Tank 7% | Scavenger-Mutant Dominant Class ---------------- Mutant | -10/Materials Tank | -10/Mines Scavenger-Mutant | -10/Exiles Scavenger-Gunner | -9/Mines Scavenger-Gunner | -8/Materials Scavenger-Gunner | -7/Factory Scavenger-Gunner | -7/Waste Scavenger-Gunner | -7/Factory Scavenger-Gunner | -7/DSF Hacker-Gunner | -6/Factory Resources | -11 -10 -10 -10 -9 -8 -7 -7 -7 -7 -6 ----------- Run | Yrd Mat Min Exi Min Mat Fac Was Fac DSF Fac Matter Collected 4307 | 207 221 219 545 186 1325 . 446 68 288 802 Remotely . | . . . . . . . . . . . Salvage Created 6747 | 71 1260 283 176 213 2458 . 434 42 268 1542 Parts 354 | 5 82 22 4 18 132 3 8 5 18 57 Haulers Intercepted 11 | . 2 . . . 6 . . . . 3 Recyclers Shooed 1 | . . . . . . . . . . 1 Parts Field Recycled . | . . . . . . . . . . . Retrieved Matter . | . . . . . . . . . . . Parts Self-Destructed . | . . . . . . . . . . . Prevented . | . . . . . . . . . . . Kills | -11 -10 -10 -10 -9 -8 -7 -7 -7 -7 -6 ------- Run | Yrd Mat Min Exi Min Mat Fac Was Fac DSF Fac Combat Hostiles Destroyed 111 | . 26 7 3 4 43 1 2 3 6 16 Guns 87 | . 10 7 3 3 36 1 2 3 6 16 Cannons 24 | . 16 . . 1 7 . . . . . Classes Destroyed 18 | 1 7 1 1 . 3 . 1 . 3 1 Worker 8 | . 3 1 . . 3 . . . . 1 Builder 11 | . 7 . . 3 1 . . . . . Tunneler 6 | 3 . 1 . 1 . . . . . 1 Hauler 11 | . 2 . . . 6 . . . . 3 Recycler 6 | . 1 3 . 1 1 . . . . . Operator 2 | . . . . . . . . . . 2 Watcher 8 | . 3 . . . 5 . . . . . Swarmer 20 | . 3 3 . 3 8 . . 3 . . Grunt 58 | . 23 2 . 1 21 . . . 2 9 Brawler 1 | . . . . . 1 . . . . . Sentry 17 | . . . . . 11 1 . . . 5 Demolisher 2 | . . 2 . . . . . . . . Specialist 2 | . . . . . . . . . 2 . Hunter 2 | . . . . . 2 . . . . . Programmer 2 | . . . . . . . . . 1 1 Heavy 2 | . . . . . . . . . 1 1 Compactor 2 | . . . . . . . 2 . . . Assembled 2 | . . . 2 . . . . . . . Best Kill Streak 7 | 2 5 3 2 3 7 3 1 3 5 3 Combat Bots Only 7 | . 3 3 2 3 7 3 1 3 5 3 Max Kills in Single Turn 2 | 1 2 2 1 1 2 1 1 2 1 1 Gunslinging 1 | . . 1 . . 1 . . 1 . . Exploded . | . . . . . . . . . . . Melee . | . . . . . . . . . . . Uniques/NPCs Destroyed 1 | . . . 1 . . . . . . . 8R-AWN (-10/Exiles) Combat | -11 -10 -10 -10 -9 -8 -7 -7 -7 -7 -6 -------- Run | Yrd Mat Min Exi Min Mat Fac Was Fac DSF Fac Hostile Shots Fired 374 | . 44 19 85 7 94 9 . 5 8 103 Missed 142 | . 11 6 27 2 37 4 . 1 3 51 Hits 232 | . 33 13 58 5 57 5 . 4 5 52 Projectile 232 | . 33 13 58 5 57 5 . 4 5 52 AOE 9 | . . 9 . . . . . . . . Critical Strikes 28 | . . 1 23 1 . . . . . 3 Damage Taken 2815 | . 270 293 835 41 547 28 . 29 84 688 Core 2026 | . 182 214 567 36 396 20 . 15 55 541 Absorbed by Shields . | . . . . . . . . . . . Redirected to Core 1798 | . 137 170 526 16 361 20 . 15 55 498 Ignored by Resistances 989 | . 87 80 239 15 260 14 . 32 61 201 Core Remaining (%) 80 | 100 . . . 22 100 . . . 100 . Volleys Fired 367 | 7 65 13 44 14 117 2 21 3 18 63 Largest 4 | 2 2 3 3 3 4 4 4 4 4 4 Hottest 130 | 40 130 105 60 112 115 100 100 100 100 100 Shots Fired 1051 | 14 130 28 129 42 323 8 84 12 72 209 Gun 926 | 14 36 28 129 35 299 8 84 12 72 209 Cannon 125 | . 94 . . 7 24 . . . . . Launcher . | . . . . . . . . . . . Special . | . . . . . . . . . . . Kinetic 879 | 14 . 17 129 35 299 8 84 12 72 209 Thermal 141 | . 130 11 . . . . . . . . Explosive . | . . . . . . . . . . . Electromagnetic 31 | . . . . 7 24 . . . . . Robot Hit Streak 61 | 7 39 39 50 53 37 32 40 4 41 61 Robot Miss Streak 5 | 2 5 1 1 2 2 . 1 1 1 1 Penetration Max 1 | . . . . . 1 . . . . . Secondary Targets 12 | . 1 2 . . 5 . 1 2 . 1 Max Gunslinging Chain 1 | . 1 1 . . 1 . 1 1 . 1 Shots Hit Robots 866 | 10 94 22 120 26 249 7 79 9 61 189 Core Hits 359 | 4 88 34 18 10 102 3 12 4 18 66 Critical Kills 1 | . . . . . 1 . . . . . Critical Parts Destroyed 6 | . . 1 1 . 2 . . . . 2 Critical Strikes 9 | . . 1 2 1 3 . . . . 2 Destroy 7 | . . 1 2 . 3 . . . . 1 Corrupt 1 | . . . . 1 . . . . . . Smash 1 | . . . . . . . . . . 1 Melee Attacks 6 | . . . . . . . . . . 6 Impact 6 | . . . . . . . . . . 6 Slashing . | . . . . . . . . . . . Piercing . | . . . . . . . . . . . Sneak Attacks . | . . . . . . . . . . . Combat Hostiles . | . . . . . . . . . . . Follow-up Attacks . | . . . . . . . . . . . Damage Inflicted 14915 | 111 1748 348 1507 462 4711 122 1380 153 1046 3327 Guns 12788 | 111 601 348 1507 289 3990 122 1380 153 1046 3241 Cannons 2041 | . 1147 . . 173 721 . . . . . Explosions . | . . . . . . . . . . . Melee 86 | . . . . . . . . . . 86 Ramming . | . . . . . . . . . . . Kinetic 12004 | 111 . 165 1507 289 3990 122 1380 153 1046 3241 Thermal 1931 | . 1748 183 . . . . . . . . Explosive . | . . . . . . . . . . . Electromagnetic 894 | . . . . 173 721 . . . . . Impact 86 | . . . . . . . . . . 86 Slashing . | . . . . . . . . . . . Piercing . | . . . . . . . . . . . Highest Corruption 2 | . 1 1 1 1 . . . . . 2 Average Corruption 1 | . 1 1 1 1 . . . . . 1 Corruption Purged . | . . . . . . . . . . . Corruption Blocked . | . . . . . . . . . . . Effects 29 | . 5 5 4 9 . . . . . 6 Message Errors 11 | . 3 1 3 3 . . . . . 1 Matter Fused 2 | . 1 . . 1 . . . . . . Heat Flow Errors 3 | . . . . 2 . . . . . 1 Energy Discharges 6 | . 1 1 . 3 . . . . . 1 Data Loss (minor) 5 | . . 2 . . . . . . . 3 Weapon Failures 2 | . . 1 1 . . . . . . . Overload Shots . | . . . . . . . . . . . Overflow Damage 91 | . 14 . . . 27 . . . . 50 Projectiles 41 | . 14 . . . 27 . . . . . Explosions . | . . . . . . . . . . . Melee 50 | . . . . . . . . . . 50 Knockbacks 1 | . . . . . . . . . . 1 Impact 1 | . . . . . . . . . . 1 Kinetic . | . . . . . . . . . . . Secondary . | . . . . . . . . . . . Self-Inflicted Damage . | . . . . . . . . . . . Shots . | . . . . . . . . . . . Rammed . | . . . . . . . . . . . Targets Rammed . | . . . . . . . . . . . Kicked . | . . . . . . . . . . . Crushed . | . . . . . . . . . . . Highest Temperature 320 | . 41 20 . 243 133 128 320 68 36 140 Average Temperature 50 | . 19 13 . 64 34 71 106 45 20 39 Received Heat Transfer 780 | . 165 39 . 45 306 18 . . 18 189 Siege Activations . | . . . . . . . . . . . Martial Activations . | . . . . . . . . . . . Shielding Activations . | . . . . . . . . . . . Robots Disrupted . | . . . . . . . . . . . Combat Hostiles . | . . . . . . . . . . . Robots Corrupted 1 | . . . . . . . . . . 1 Combat Hostiles . | . . . . . . . . . . . Parts Fried 5 | . . . . 2 2 . . . . 1 Impact Corruptions 2 | . . . . . . . . . . 2 Robots Melted . | . . . . . . . . . . . Combat Hostiles . | . . . . . . . . . . . Parts Melted 7 | . 5 . . . . . 2 . . . Heat Transferred 3358 | . 3123 235 . . . . . . . . Parts Sabotaged . | . . . . . . . . . . . Parts Stolen . | . . . . . . . . . . . Parts Stripped . | . . . . . . . . . . . Power Chain Reactions . | . . . . . . . . . . . Alert | -11 -10 -10 -10 -9 -8 -7 -7 -7 -7 -6 ------- Run | Yrd Mat Min Exi Min Mat Fac Was Fac DSF Fac Maximum Alert Level 2 | . 2 1 . . 2 1 . . 1 1 Low Security (%) 75 | 100 19 97 . 100 60 . 100 100 92 98 Level 1 14 | . 33 2 . . 29 100 . . 7 1 Level 2 10 | . 46 . . . 9 . . . . . Level 3 . | . . . . . . . . . . . Level 4 . | . . . . . . . . . . . Level 5 . | . . . . . . . . . . . High Security . | . . . . . . . . . . . Max Security . | . . . . . . . . . . . Peak Influence 637 | 10 637 213 . 70 566 250 67 104 204 210 Initial 220 | . . 163 . . 16 220 67 . 45 92 Average 138 | 1 363 59 . 6 179 236 11 67 142 96 Influence Increases 3673 | 15 1047 195 . 177 1350 30 15 114 159 571 Destroy 0b10 Robot/C 2160 | . 520 140 . 120 860 20 . 60 120 320 Destroy 0b10 Robot/NC 260 | 15 80 25 . 25 80 . . . . 35 Destroy Leader 618 | . 150 30 . 30 252 10 . 10 30 106 Allied During Kill 17 | . . . . 2 1 . . 14 . . Successful Hack 52 | . 5 . . . 16 . . . . 31 Select Force Hacks 400 | . 260 . . . 80 . . 30 . 30 Disable Machine 27 | . . . . . 18 . . . 9 . Destroy Structure 34 | . 2 . . . 13 . 15 . . 4 Partial Spotted 30 | . 15 . . . . . . . . 15 Lose Combat Pursuer 75 | . 15 . . . 30 . . . . 30 Influence Decreases 3591 | 15 550 692 . 125 836 366 245 40 29 693 Entered New Map 1020 | . . 334 . . 36 346 163 . 29 112 Time Decay 2509 | 15 550 358 . 125 780 20 40 40 . 581 Lost Ally 62 | . . . . . 20 . 42 . . . Squads Dispatched 34 | . 12 . . 1 9 . . 1 2 9 Investigation 20 | . 12 . . 1 3 . . 1 . 3 Extermination 4 | . . . . . . . . . . 4 Reinforcement 7 | . . . . . 3 . . . 2 2 Assault . | . . . . . . . . . . . Garrison 3 | . . . . . 3 . . . . . Intercept . | . . . . . . . . . . . Searches Triggered . | . . . . . . . . . . . Construction Impeded . | . . . . . . . . . . . Haulers Reinforced 1 | . . . . . . . . . . 1 Active Scanning Responses . | . . . . . . . . . . . Cargo Convoy Interrupts . | . . . . . . . . . . . Stealth | -11 -10 -10 -10 -9 -8 -7 -7 -7 -7 -6 --------- Run | Yrd Mat Min Exi Min Mat Fac Was Fac DSF Fac Distress Signals 6 | . 2 . . . 3 . . . . 1 Communications Jammed 3 | . . . . . . . . . . 3 Distress Signals . | . . . . . . . . . . . Times Spotted 141 | . 28 7 5 6 56 2 6 3 6 22 Peak Tracking Total 9 | . 4 3 9 3 4 1 3 3 2 3 Tactical Retreats 6 | . 1 . 1 . 2 . . . . 2 Traps | -11 -10 -10 -10 -9 -8 -7 -7 -7 -7 -6 ------- Run | Yrd Mat Min Exi Min Mat Fac Was Fac DSF Fac Traps Triggered 10 | . 5 . . . 1 1 . . . 3 Indirectly . | . . . . . . . . . . . Trap Hack Attempts . | . . . . . . . . . . . Triggered . | . . . . . . . . . . . Disarmed . | . . . . . . . . . . . Reprogrammed . | . . . . . . . . . . . Reused . | . . . . . . . . . . . Traps Extracted . | . . . . . . . . . . . Installed . | . . . . . . . . . . . Triggered . | . . . . . . . . . . . Machines | -11 -10 -10 -10 -9 -8 -7 -7 -7 -7 -6 ---------- Run | Yrd Mat Min Exi Min Mat Fac Was Fac DSF Fac Machines Disabled 5 | . . . 2 . 2 . . . 1 . Max in Single Turn 1 | . . . 1 . 1 . . . 1 . Garrison Access 1 | . . . . . 1 . . . . . Machines Repaired . | . . . . . . . . . . . Machines Dismantled . | . . . . . . . . . . . Machines Sabotaged 5 | . 4 . . . 1 . . . . . Overloaded Fab Kills . | . . . . . . . . . . . Hacking | -11 -10 -10 -10 -9 -8 -7 -7 -7 -7 -6 --------- Run | Yrd Mat Min Exi Min Mat Fac Was Fac DSF Fac Machines Accessed 30 | . 11 . 1 2 4 . . 2 . 10 Terminals 18 | . 8 . . 1 2 . . 1 . 6 Fabricators 3 | . . . . . . . . . . 3 Repair Stations 1 | . 1 . . . . . . . . . Recycling Units 5 | . 2 . . . 1 . . 1 . 1 Scanalyzers . | . . . . . . . . . . . Garrison Access 1 | . . . . . 1 . . . . . Total Hacks 59 | . 20 . 1 2 11 . . 2 . 23 Successful 43 | . 16 . 1 2 7 . . 2 . 15 Failed 16 | . 4 . . . 4 . . . . 8 Catastrophic 2 | . 1 . . . 1 . . . . . Database Lockouts . | . . . . . . . . . . . Manual 45 | . 20 . 1 1 9 . . 1 . 13 Terminals 39 | . 16 . . 1 7 . . 1 . 14 Fabricators 8 | . . . . . . . . . . 8 Repair Stations 1 | . 1 . . . . . . . . . Recycling Units 7 | . 3 . . . 2 . . 1 . 1 Scanalyzers . | . . . . . . . . . . . Garrison Access 2 | . . . . . 2 . . . . . Terminal Hacks 19 | . 5 . 1 1 4 . . 1 . 7 Part Schematic 2 | . . . . . . . . . . 2 Robot Analysis 8 | . 3 . . . 4 . . . . 1 Open Door 1 | . . . . 1 . . . . . . Open DSF 2 | . . . . . . . . 1 . 1 Branch Access Points 1 | . . . . . . . . . . 1 Fabricator Index 1 | . . . . . . . . . . 1 Locate Traps 2 | . 2 . . . . . . . . . Hauler Manifests 1 | . . . . . . . . . . 1 Proto ID Catalog 1 | . . . 1 . . . . . . . Fabricator Hacks 5 | . . . . . . . . . . 5 Load Schematic 3 | . . . . . . . . . . 3 Build 2 | . . . . . . . . . . 2 Repair Station Hacks . | . . . . . . . . . . . Recycling Unit Hacks . | . . . . . . . . . . . Scanalyzer . | . . . . . . . . . . . Garrison Access Hacks 1 | . . . . . 1 . . . . . Seal Access 1 | . . . . . 1 . . . . . Unauthorized Hacks 17 | . 10 . . 1 2 . . 1 . 3 Terminals 10 | . 7 . . 1 1 . . . . 1 Disrupt 1 | . . . . . . . . . . 1 Sabotage 7 | . 6 . . . 1 . . . . . Search 2 | . 1 . . 1 . . . . . . Fabricators 1 | . . . . . . . . . . 1 Prioritize 1 | . . . . . . . . . . 1 Repair Stations 1 | . 1 . . . . . . . . . Patch 1 | . 1 . . . . . . . . . Recycling Units 5 | . 2 . . . 1 . . 1 . 1 Tunnel 5 | . 2 . . . 1 . . 1 . 1 Scanalyzers . | . . . . . . . . . . . Garrison Access . | . . . . . . . . . . . Data Cores Recovered 2 | . . . . . . . . . . 2 Used 1 | . . . . . . . . . . 1 Hacking Detections 13 | . 4 . . . 3 . . . . 6 Full Trace Events 3 | . 1 . . . . . . . . 2 Feedback Events . | . . . . . . . . . . . Feedback Blocked . | . . . . . . . . . . . Robot Schematics Acquired . | . . . . . . . . . . . Robots Built . | . . . . . . . . . . . Authchips . | . . . . . . . . . . . Time . | . . . . . . . . . . . Total Robot Build Rating . | . . . . . . . . . . . Part Schematics Acquired 2 | . . . . . . . . . . 2 Parts Built 4 | . . . . . . . . . . 4 Authchips . | . . . . . . . . . . . Time 126 | . . . . . . . . . . 126 Total Part Build Rating 14 | . . . . . . . . . . 14 Parts Repaired . | . . . . . . . . . . . Time . | . . . . . . . . . . . Parts Recycled . | . . . . . . . . . . . Recycled Matter . | . . . . . . . . . . . Retrieved Matter . | . . . . . . . . . . . Retrieved Components . | . . . . . . . . . . . Parts Scanalyzed . | . . . . . . . . . . . Part Schematics Acquired . | . . . . . . . . . . . Parts Damaged . | . . . . . . . . . . . Bothacking | -11 -10 -10 -10 -9 -8 -7 -7 -7 -7 -6 ------------ Run | Yrd Mat Min Exi Min Mat Fac Was Fac DSF Fac Used RIF Installer . | . . . . . . . . . . . Robots Hacked . | . . . . . . . . . . . Non-combat . | . . . . . . . . . . . Combat . | . . . . . . . . . . . Robot Hacks Applied . | . . . . . . . . . . . Relay Couplers Released . | . . . . . . . . . . . Fabnet Peak Effective % . | . . . . . . . . . . . Robots Rewired . | . . . . . . . . . . . Allies Hacked . | . . . . . . . . . . . Hacks Repelled . | . . . . . . . . . . . Allies | -11 -10 -10 -10 -9 -8 -7 -7 -7 -7 -6 -------- Run | Yrd Mat Min Exi Min Mat Fac Was Fac DSF Fac Total Allies 24 | . . 3 . 2 . . 19 . . . Largest Group 19 | . . 3 3 2 1 . 19 9 . . Highest-Rated Group 465 | . . 40 40 49 31 . 465 257 . . Highest-Rated Ally 35 | . . 16 16 31 31 . 35 31 . . Total Orders 3 | . . . 3 . . . . . . . STAY 3 | . . . 3 . . . . . . . Ally Attacks 147 | . . . 7 6 8 . 126 . . . Total Damage 2216 | . . . 29 101 84 . 2002 . . . Kills 10 | . . . 1 2 . . 7 . . . Allies Corrupted . | . . . . . . . . . . . Allies Melted . | . . . . . . . . . . . Intel | -11 -10 -10 -10 -9 -8 -7 -7 -7 -7 -6 ------- Run | Yrd Mat Min Exi Min Mat Fac Was Fac DSF Fac Active Infowar (turns) 5032 | 41 1017 3 20 638 1568 54 305 82 120 1184 Sensors 3003 | . . 3 . . 1255 54 305 82 120 1184 Terrain 51 | 41 10 . . . . . . . . . Seismic 1024 | 7 1017 . . . . . . . . . Triangulation 1018 | . . . . . . . . . . 1018 Cloaking 3776 | . . . 20 638 1373 54 305 82 120 1184 Jamming 1724 | . . . . . . 33 305 82 120 1184 Robot Analysis Total 8 | . 3 . . . 4 . . . . 1 Derelict Logs Recovered 3 | . . 1 . 2 . . . . . . Drone Launches . | . . . . . . . . . . . Drone Recoveries . | . . . . . . . . . . . Exploration | -11 -10 -10 -10 -9 -8 -7 -7 -7 -7 -6 ------------- Run | Yrd Mat Min Exi Min Mat Fac Was Fac DSF Fac Turns Passed 7658 | 88 1158 975 1022 1102 1568 54 305 82 120 1184 Spaces Moved 7479 | 66 906 764 679 448 1631 99 479 190 213 2004 Core 4 | 4 . . . . . . . . . . Treads 253 | . 125 125 3 . . . . . . . Legs 1004 | . . . 87 448 469 . . . . . Wheels 2071 | 62 781 639 589 . . . . . . . Hover 4147 | . . . . . 1162 99 479 190 213 2004 Flight . | . . . . . . . . . . . Fastest Speed 40 | 50 80 110 80 120 40 40 40 40 40 40 Average Speed 71 | 84 91 118 103 120 64 40 40 40 40 42 Slowest Speed 160 | 100 160 160 160 120 130 40 100 40 40 45 Overloaded Moves . | . . . . . . . . . . . Propulsion Burnouts . | . . . . . . . . . . . Robots Hopped . | . . . . . . . . . . . Potential Cave-ins . | . . . . . . . . . . . Cave-ins Triggered . | . . . . . . . . . . . Exploration Rate (%) 66 | 4 99 99 69 96 97 5 96 9 97 55 Regions Visited 10 Branch Regions 3 Pre-discovered Areas 6 | . 2 . . 1 1 . . 1 . 1 Known Exits Taken 2 | . . . . . 1 . . 1 . . Unknown Exits Taken 5 | 1 1 1 1 1 . . . . . . Scrap Searched 4 | . . 1 . 3 . . . . . . Spaces Dug 6 | . . . . . 2 . . . . 4 Terrain Destroyed 12 | . . . . . 8 . . . . 4 Melee 4 | . . . . . . . . . . 4 Projectile 8 | . . . . . 8 . . . . . AOE . | . . . . . . . . . . . Terrain Rammed . | . . . . . . . . . . . Walls Destroyed . | . . . . . . . . . . . Machines Disabled . | . . . . . . . . . . . Actions | -11 -10 -10 -10 -9 -8 -7 -7 -7 -7 -6 --------- Run | Yrd Mat Min Exi Min Mat Fac Was Fac DSF Fac Total 9319 | 81 1106 812 902 993 2013 112 582 194 239 2285 Wait 1171 | . 82 20 136 517 167 3 78 . 3 165 Move 7470 | 65 905 763 678 447 1630 99 478 189 212 2004 Hop . | . . . . . . . . . . . Pick Up 23 | . 4 1 9 1 2 . 2 . . 4 Fast Attach 31 | 8 9 . 9 . 3 . . . . 2 Attach 7 | . 1 . 1 1 2 1 . . . 1 Detach 2 | . 1 . 1 . . . . . . . Swap 62 | 1 13 4 6 5 21 2 2 . . 8 Drop 49 | . 8 3 18 2 12 1 1 . . 4 Fire 367 | 7 65 13 44 14 117 2 21 3 18 63 Melee 6 | . . . . . . . . . . 6 Ram . | . . . . . . . . . . . Kick . | . . . . . . . . . . . Crush . | . . . . . . . . . . . Escape Stasis 13 | . . . . . . . . . . 13 Rewire . | . . . . . . . . . . . Trap . | . . . . . . . . . . . Miscellaneous 118 | . 18 8 . 6 59 4 . 2 6 15 Route ------- -11/Scrapyard -10/Materials (discovered 6 exits: [*Mat x3] / [*Min x2] / [*Sub]) -10/Mines (discovered 4 exits: [*Mat x2] / *Exi / [*Sub]) -10/Exiles -9/Mines (discovered 2 exits: *Mat x2) -8/Materials (discovered 3 exits: *Fac x3) -7/Factory -7/Waste -7/Factory -7/DSF -6/Factory (discovered 3 exits: *Fac / *Low x2) History --------- Turn | Location | Event 1 | -11/Scrapyard | Upgraded with Power slot (x1) 1 | -11/Scrapyard | Upgraded with Propulsion slot (x1) 1 | -11/Scrapyard | Upgraded with Utility slot (x1) 1 | -11/Scrapyard | Upgraded with Weapon slot (x1) 25 | -11/Scrapyard | Discovered new exit (range 16) 89 | -11/Scrapyard | Entered Materials 298 | -10/Materials | Discovered new exit (range 12) 309 | -10/Materials | Build established: Mutant 401 | -10/Materials | Reached level 2 408 | -10/Materials | Discovered new exit (range 15) 622 | -10/Materials | Discovered new exit (range 13) 708 | -10/Materials | Reached level 3 733 | -10/Materials | Upgraded with Utility slot (x1) 773 | -10/Materials | Discovered new exit (range 10) 889 | -10/Materials | Discovered new exit (range 16) 954 | -10/Materials | Reached level 4 965 | -10/Materials | Discovered new exit (range 10) 1108 | -10/Materials | Upgraded with Propulsion slot (x1) 1108 | -10/Materials | Upgraded with Weapon slot (x1) 1247 | -10/Materials | Entered Mines 1326 | -10/Mines | Assembled infested the area 1331 | -10/Mines | Assisted by a Guerilla fighting off Assembled 1364 | -10/Mines | Found a Scrap Suit stashed away for nefarious purposes 1409 | -10/Mines | Build established: Tank 1499 | -10/Mines | Discovered new exit (range 14) 1563 | -10/Mines | Discovered new exit (range 5) 1636 | -10/Mines | Found a damaged Exp. Sensor Array with a note attached 1645 | -10/Mines | Found Prototype Device 1645 | -10/Mines | Identified Exp. Sensor Array 1794 | -10/Mines | Learned 4 Materials zone layouts 1798 | -10/Mines | Discovered new exit (range 9) 1909 | -10/Mines | Deemed a non-threat by the Exiles lab entrance 2086 | -10/Mines | Assisted by bots powering up and referring to "LRC-V3" 2160 | -10/Mines | Build established: Scavenger-Tank 2196 | -10/Mines | Discovered new exit (range 5) 2222 | -10/Mines | Entered Exiles 2222 | -10/Exiles | Accompanied by 3 allies 2224 | -10/Exiles | Reached level 5 2250 | -10/Exiles | Met 8R-AWN 2268 | -10/Exiles | Met EX-HEX 2308 | -10/Exiles | Met EX-DEC 2432 | -10/Exiles | Met EX-BIN 2443 | -10/Exiles | Aligned with FarCom system 2444 | -10/Exiles | Given EX-Vault access code 2463 | -10/Exiles | Opened EX-Vault 2469 | -10/Exiles | Found Cloak of Protection 2489 | -10/Exiles | Warned to stay clear of 0b10 Research branches 2665 | -10/Exiles | Build established: Scavenger-Mutant 2876 | -10/Exiles | Attacked by the Exiles 3002 | -10/Exiles | Lost 3 allies 3013 | -10/Exiles | Core integrity fell below 50% 3066 | -10/Exiles | Core integrity fell below 20% 3111 | -10/Exiles | Destroyed 8R-AWN 3233 | -10/Exiles | Discovered new exit (range 11) 3244 | -10/Exiles | Left Exiles lab with Cloak of Protection 3244 | -10/Exiles | Entered Mines 3244 | -9/Mines | Discovered new exit (range 7) 3245 | -9/Mines | Learned location of Storage (-7) 3341 | -9/Mines | Learned location of 1 exit from Materials 3409 | -9/Mines | Met a Derelict who couldn't figure out how to use a Trap Extractor 3415 | -9/Mines | Build established: Scavenger-Gunner 4200 | -9/Mines | Learned Materials security intel 4286 | -9/Mines | Discovered new exit (range 8) 4339 | -9/Mines | Reached level 6 4344 | -9/Mines | Upgraded with Utility slot (x1) 4346 | -9/Mines | Entered Materials 4346 | -8/Materials | Accompanied by 1 ally 4347 | -8/Materials | Identified exit to Factory 4347 | -8/Materials | Core integrity fell below 50% 4348 | -8/Materials | Reached level 7 4351 | -8/Materials | Led the pair of lost Derelicts to an unsafe place 4366 | -8/Materials | Garrison activated, responded to threat 4368 | -8/Materials | Core integrity fell below 20% 4652 | -8/Materials | Reached level 8 4659 | -8/Materials | Upgraded with Utility slot (x1) 5212 | -8/Materials | Reached level 9 5280 | -8/Materials | Upgraded with Propulsion slot (x1) 5392 | -8/Materials | Discovered exit to Factory (range 8) 5618 | -8/Materials | Reached level 10 5675 | -8/Materials | Discovered exit to Factory (range 6) 5834 | -8/Materials | Reached level 11 5864 | -8/Materials | Destroyed 7 combat bots 5886 | -8/Materials | Upgraded with Weapon slot (x1) 5914 | -8/Materials | Entered Factory 5916 | -7/Factory | Reached level 12 5935 | -7/Factory | Upgraded with Utility slot (x1) 5968 | -7/Factory | Sucked down chute 5968 | -7/Factory | Entered Waste 5972 | -7/Waste | Spotted C-40 Crusher 5976 | -7/Waste | Warlord forces began an assault 6013 | -7/Waste | Spotted C-40 Crusher 6014 | -7/Waste | Spotted C-40 Crusher 6027 | -7/Waste | Destroyed C-40 Crusher 6032 | -7/Waste | Spotted C-40 Crusher 6055 | -7/Waste | Spotted C-40 Crusher 6060 | -7/Waste | Spotted C-40 Crusher 6071 | -7/Waste | Allies destroyed C-40 Crusher 6094 | -7/Waste | Destroyed C-40 Crusher 6105 | -7/Waste | Lost 10 allies 6137 | -7/Waste | Discovered new exit (range 13) 6273 | -7/Waste | Entered Factory 6273 | -7/Factory | Accompanied by 9 allies 6355 | -7/Factory | Identified exit to DSF 6355 | -7/Factory | Entered DSF 6355 | -7/DSF | Reached level 13 6376 | -7/DSF | Additional patrols routed to DSF 6389 | -7/DSF | Reached level 14 6406 | -7/DSF | Discovered new exit (range 14) 6475 | -7/DSF | Entered Factory 6477 | -6/Factory | Reached level 15 6613 | -6/Factory | Fabricated Triangulator (x2) 6812 | -6/Factory | Identified exit to Lower Caves 6827 | -6/Factory | Build established: Hacker-Gunner 6908 | -6/Factory | Reached level 16 6912 | -6/Factory | Upgraded with Utility slot (x1) 7083 | -6/Factory | Fabricated Plasma Cutter (x2) 7473 | -6/Factory | Discovered new exit (range 5) 7512 | -6/Factory | Identified exit to Factory 7613 | -6/Factory | Core integrity fell below 50% 7659 | -6/Factory | Self-destructed Last Messages --------------- transfer corridor. 07594_ K-01 Serf cleans the Fabricator. 07597_ ALERT: Potential suspicious activity detected, Programmers report to Factory Zone 5E. 07599_ System corrupted: Component data lost. 07613_ G-50 Soldier suffers critical hit (Destroy). 07613_ Destroyed Carbon-fiber Leg. 07620_ Connecting with Terminal... >>Trojan(Disrupt) Trojan loaded successfully. Testing... Disruption routine running. 07637_ G-67 Veteran destroyed. 07642_ G-50 Soldier destroyed. 07653_ System corrupted: Energy discharge (-197). 07658_ Used Protomatter to restore core integrity (+195, depleted) Map ----- +----------------------------------------------------+ | | | | | | | | | | | | | | | | | | | ????????###########??????###############?????????? | | ##??????# ######## """ #?????????? | | #??????# # ! # "Y" """ """ #?????????? | | #???????? # # " " """ """ ########### | | #???????? ^ ?# "# """ """ + | | ##########+##+#### T# ######## ## | | + + "#= ! #####??# #? | | ############# # ###########+### ### # | | #???????????# #####+##### > " # | | #???????????# # ### # | | #???????????########## ! #??????# #? | | p#????#???????????????# #??????# #? | | ????? #????############ = ########+#? | | ? #????# ! ## """%""" # #? | | """"" #????# ## """=""" # """" #? | | """"" #????# ## """ """% # """" #? | | """"" #????# ## @= # """" #? | | """"" #????# ! "" "" ## """ !! # """" #? | | #????# ""S"" + """ !! # """" #? | | % #????# """" m## """ !! # """" #? | | #????# ## # """" ## | | ##+#############+###### # # | | ### #######+## | | | | | | """" """" |"" """" | | """" """" F" "" "" """" | | ##+############ """" """" " "F "" """" | | ? ??????????# """" """" "" """"" """" | | ? ??????????# """" """" | | ""?????????# """" """" | | ! ""?????????# ######### | | ????????#u """" """" """" #???????# | | """ ????????# """" """" """" ##??????# | | """ ???????# """" """" """" #??????# | | """ ???????? """" """" """" #??????######## | | ????????# """" """" """" #????????# | | #?????????????# """" """" """" #????????# | | ??????????????# #????????# | | ??????????????# """" """ #????????# | | ??????????????# """" k""" #????????# | +----------------------------------------------------+ Best States ------------- Heat Dissipation 91 Energy Generation 49 Energy Capacity 535 Matter Stores 300 Matter Capacity 300 Sight Range 16 Robot Scan Range 30 Terrain Scan Range 16 Terrain Scan Density 10 Jamming Range 12 Cloak Strength 5 Additional Mass Support 12 Armor Coverage 675 Resistance: KI 50 Resistance: TH 20 Resistance: EX 20 Resistance: EM 20 Resistance: I 20 Resistance: S 20 Resistance: P 20 Weapon Cycling 25 Evasion (%) 57 Recoil Reduction 2 Offensive Hacking 30 Defensive Hacking 10 Item Schematics ----------------- Triangulator | -6/Factory | Hacked Plasma Cutter | -6/Factory | Hacked Robot Schematics ------------------ None Fabricated ------------ Triangulator | x2 | -6/Factory Plasma Cutter | x2 | -6/Factory Repaired ---------- Nothing Alien Tech Used ----------------- None Achievements -------------- None Challenges ------------ None RPGLIKE | -11 -10 -10 -10 -9 -8 -7 -7 -7 -7 -6 --------- Run | Yrd Mat Min Exi Min Mat Fac Was Fac DSF Fac Levels Raised 15 | . 3 . 1 1 5 1 . . 2 2 XP Earned 27615 | 4000 4640 1350 304 1274 7789 1650 230 530 1968 3880 XP Spent 25105 | 3920 4300 . 855 1400 7350 1700 880 . . 4700 Upgrades 52 | 14 7 . 4 2 13 1 4 . . 7 Power Slot 1 | 1 . . . . . . . . . . Propulsion Slot 3 | 1 1 . . . 1 . . . . . Utility Slot 6 | 1 1 . . 1 1 1 . . . 1 Weapon Slot 3 | 1 1 . . . 1 . . . . . Core Integrity 3 | . . . 3 . . . . . . . Heat Dissipation 11 | 7 . . . . . . 4 . . . Energy Generation 3 | . . . . 1 2 . . . . . Mass Support 3 | . 1 . . . 2 . . . . . Inventory Capacity 3 | 2 . . 1 . . . . . . . Sensor Range 5 | . . . . . 5 . . . . . Ranged Accuracy 4 | 1 3 . . . . . . . . . Hack Attack % 4 | . . . . . . . . . . 4 Hack Defense % 2 | . . . . . . . . . . 2 KI Damage % 1 | . . . . . 1 . . . . . Protomatter Created 1338 | . 226 58 . 42 479 69 95 46 148 175 Integrity Restored 2253 | . 272 142 . 126 1242 57 . 31 84 299 Core 1768 | . 182 110 . 126 977 20 . 15 55 283 Parts 485 | . 90 32 . . 265 37 . 16 29 16 Protomatter Decayed 619 | . 129 . 112 . 16 48 99 23 87 105 Game ------ Seed GravmagHypertargetingShovel Manual? 0 Play Time 01:08:18 Cumulative 401.5 hours Start 2025.10.11 @ 14:40:26 End 2025.10.13 @ 07:44:00 Sessions 3 Manual Loads 0 Difficulty Adventurer Special Mode Winter2019/RPGLIKE Game No. 150 Rogue 0 Adventurer 150 Explorer 0 Win Type - Total 16 Types 3/3/3/3/1/0/0/1/1/1 Lore% 92 Gallery% 82 Achievement% 82 Wizard Run 0 Options --------- Layout 2 ASCII 0 Keyboard 0 Movement Numpad Keybinds 0 Fullscreen 2 Font 24/Smallcaps Map View 50x44 Zoom Use 0% Tactical HUD 1 Map Filters NONE Filters NONE Steam 1 RUN: 10025621-d242-4b27-bf92-bccd6bb65735